[Event "Elegant 1st Division League 2024"]
[Site "Dhaka"]
[Date "2024.07.15"]
[Round "5.2"]
[White "Ahmed, Mahtabuddin"]
[Black "Tutul, Dhar"]
[Result "0-1"]
[Annotator "RC"]
[ECO "C00"]
[WhiteElo "1974"]
[BlackElo "2008"]
[PlyCount "59"]
[EventDate "2024.07.10"]
[EventType "team-tourn"]
[EventCountry "BAN"]
[SourceTitle "playchess.com"]
[Source "ChessBase"]
[SourceQuality "1"]
[TimeControl "5400+30"]

1. Nf3 {[%emt 0:06:22]} Nf6 {[%emt 0:00:10]} 2. g3 {[%emt 0:04:21]} e6 {[%emt 0:00:08]} 3. Bg2 {[%emt 0:00:17]} Be7 {[%emt 0:00:04]} 4. d3 {[%emt 0:00:44]} d5 {[%emt 0:00:13]} 5. Nbd2 {[%emt 0:00:03]} O-O {[%emt 0:00:07]} 6. O-O {[%emt 0:00:11]} c5 {[%emt 0:01:21]} 7. e4 {[%emt 0:00:38]} Nc6 {[%emt 0:00:19]} 8. b3 {[%emt 0:00:33]} Re8 {[%emt 0:09:24]} 9. Bb2 {[%emt 0:01:50]} Bf8 {[%emt 0:00:20]} 10. a3 {[%emt 0:02:12]} b6 {[%emt 0:02:53]} 11. Qe2 {[%emt 0:00:30]} Bb7 {[%emt 0:00:30]} 12. Rfd1 {[%emt 0:00:30]} g6 {[%emt 0:00:30]} 13. Nf1 {[%emt 0:00:30]} Bg7 {[%emt 0:00:30]} 14. Rab1 {[%emt 0:00:30]} Qc7 {[%emt 0:00:30]} 15. h3 {[%emt 0:00:30]} Rad8 {[%emt 0:00:30]} 16. c3 {[%emt 0:34:58]} a5 {[%emt 0:26:31]} 17. e5 {[%emt 0:07:16]} Nd7 {[%emt 0:00:09]} 18. d4 {[%emt 0:00:08]} Ra8 {[%emt 0:00:37]} 19. N3h2 {[%emt 0:05:52]} Ba6 {[%emt 0:02:20]} 20. Qd2 {[%emt 0:01:29]} f6 {[%emt 0:05:33]} 21. f4 {[%emt 0:00:43]} f5 {[%emt 0:02:24]} 22. Ne3 {[%emt 0:01:04]} cxd4 {[%emt 0:01:17]} 23. cxd4 {[%emt 0:00:30]} Ne7 {[%emt 0:00:30]} 24. Rdc1 {[%emt 0:00:30]} Qb7 {[%emt 0:00:30]} 25. Rc3 {[%emt 0:00:30]} Rec8 {[%emt 0:00:30]} 26. Rd1 {[%emt 0:02:12]} Rxc3 {[%emt 0:00:35]} 27. Qxc3 {[%emt 0:00:30]} Qc8 {[%emt 0:00:30]} 28. Qc2 {[%emt 0:00:30]} Bf8 {[%emt 0:00:30]} 29. Nef1 {[%emt 0:00:30]} h6 {[%emt 0:00:30]} 30. h4 {[%emt 0:00:30]} 0-1

[Event "Elegant 1st Division League 2024"]
[Site "Dhaka"]
[Date "2024.07.15"]
[Round "5.3"]
[White "Dakshita Kumawat"]
[Black "Shourya Paul"]
[Result "0-1"]
[Annotator "RC"]
[ECO "C58"]
[WhiteElo "1928"]
[BlackElo "1813"]
[PlyCount "48"]
[EventDate "2024.07.10"]
[EventType "team-tourn"]
[EventCountry "BAN"]
[SourceTitle "playchess.com"]
[Source "ChessBase"]
[SourceQuality "1"]
[TimeControl "5400+30"]

1. e4 {[%emt 0:00:54]} e5 {[%emt 0:00:19]} 2. Nf3 {[%emt 0:00:13]} Nc6 {[%emt 0:00:30]} 3. Bc4 {[%emt 0:00:20]} Nf6 {[%emt 0:00:23]} 4. Ng5 {[%emt 0:00:03]} d5 {[%emt 0:00:19]} 5. exd5 {[%emt 0:00:03]} Na5 {[%emt 0:00:31]} 6. Bb5+ {[%emt 0:00:04]} c6 {[%emt 0:00:09]} 7. dxc6 {[%emt 0:00:02]} bxc6 {[%emt 0:00:06]} 8. Bd3 {[%emt 0:00:01]} Nd5 {[%emt 0:00:29]} 9. Nf3 {[%emt 0:00:07]} Bd6 {[%emt 0:00:17]} 10. O-O {[%emt 0:00:08]} O-O {[%emt 0:00:20]} 11. Re1 {[%emt 0:00:02]} f5 {[%emt 0:00:17]} 12. Nxe5 {[%emt 0:06:37]} Qf6 {[%emt 0:00:17]} 13. Nf3 {[%emt 0:00:01]} g5 {[%emt 0:00:07]} 14. g3 {[%emt 0:15:09]} f4 {[%emt 0:19:03]} 15. c4 {[%emt 0:12:00]} Nb4 {[%emt 0:13:51]} 16. Be2 {[%emt 0:12:45]} g4 {[%emt 0:04:38]} 17. Nh4 {[%emt 0:14:50]} fxg3 {[%emt 0:01:56]} 18. fxg3 {[%emt 0:00:06]} Bxg3 {[%emt 0:00:25]} 19. hxg3 {[%emt 0:08:13]} Qf2+ {[%emt 0:00:09]} 20. Kh1 {[%emt 0:00:03]} Qxg3 {[%emt 0:00:08]} 21. Rf1 {[%emt 0:01:37]} Qxh4+ {[%emt 0:00:53]} 22. Kg1 {[%emt 0:00:02]} Rxf1+ {[%emt 0:06:43]} 23. Qxf1 {[%emt 0:01:33]} g3 {[%emt 0:00:09]} 24. Qg2 {[%emt 0:00:53]} Bh3 {[%emt 0:00:22]} 0-1

[Event "Elegant 1st Division League 2024"]
[Site "Dhaka"]
[Date "2024.07.15"]
[Round "5.4"]
[White "Shankhodip De"]
[Black "Jamal Uddin"]
[Result "1-0"]
[Annotator "RC"]
[ECO "D02"]
[WhiteElo "1942"]
[BlackElo "1963"]
[PlyCount "97"]
[EventDate "2024.07.10"]
[EventType "team-tourn"]
[EventCountry "BAN"]
[SourceTitle "playchess.com"]
[Source "ChessBase"]
[SourceQuality "1"]
[TimeControl "5400+30"]

1. d4 {[%emt 0:00:46]} d5 {[%emt 0:00:16]} 2. Nf3 {[%emt 0:00:32]} c6 {[%emt 0:00:09]} 3. g3 {[%emt 0:00:21]} Nf6 {[%emt 0:01:06]} 4. Bg2 {[%emt 0:00:27]} Bg4 {[%emt 0:00:26]} 5. c4 {[%emt 0:01:49]} e6 {[%emt 0:01:04]} 6. h3 {[%emt 0:00:23]} Bxf3 {[%emt 0:00:45]} 7. Bxf3 {[%emt 0:00:06]} Nbd7 {[%emt 0:00:40]} 8. O-O {[%emt 0:06:57]} Be7 {[%emt 0:01:07]} 9. Qb3 {[%emt 0:03:39]} Qb6 {[%emt 0:04:04]} 10. c5 {[%emt 0:00:25]} Qc7 {[%emt 0:00:16]} 11. Bf4 {[%emt 0:00:26]} Qc8 {[%emt 0:00:09]} 12. Qc2 {[%emt 0:03:27]} O-O {[%emt 0:02:19]} 13. Nc3 {[%emt 0:01:34]} Re8 {[%emt 0:00:29]} 14. b4 {[%emt 0:06:08]} Bf8 {[%emt 0:01:00]} 15. e4 {[%emt 0:03:33]} dxe4 {[%emt 0:00:24]} 16. Bxe4 {[%emt 0:00:26]} e5 {[%emt 0:01:55]} 17. Be3 Nxe4 {[%emt 0:02:55]} 18. Nxe4 {[%emt 0:13:10]} exd4 {[%emt 0:02:23]} 19. Bxd4 {[%emt 0:00:04]} Ne5 {[%emt 0:00:39]} 20. f4 {[%emt 0:00:51]} Ng6 {[%emt 0:01:34]} 21. f5 {[%emt 0:03:23]} Ne5 {[%emt 0:00:35]} 22. Qc3 {[%emt 0:00:29]} f6 {[%emt 0:01:20]} 23. Ng5 {[%emt 0:02:44]} h6 {[%emt 0:04:45]} 24. Ne6 {[%emt 0:02:40]} Nf7 {[%emt 0:03:38]} 25. h4 {[%emt 0:13:06]} Nd8 {[%emt 0:02:40]} 26. Rfe1 {[%emt 0:10:41]} Qd7 {[%emt 0:12:56]} 27. Qc4 {[%emt 0:02:00]} Qf7 {[%emt 0:01:54]} 28. Qb3 {[%emt 0:01:42]} Kh8 {[%emt 0:02:14]} 29. Rad1 {[%emt 0:05:36]} a5 {[%emt 0:03:25]} 30. bxa5 {[%emt 0:03:16]} Rxa5 {[%emt 0:06:02]} 31. Nf4 {[%emt 0:07:51]} Qd7 {[%emt 0:05:59]} 32. Bc3 {[%emt 0:01:16]} Rxe1+ {[%emt 0:00:27]} 33. Bxe1 {[%emt 0:00:05]} Bxc5+ {[%emt 0:00:35]} 34. Kh1 {[%emt 0:00:52]} Qc7 {[%emt 0:01:36]} 35. Bxa5 {[%emt 0:02:08]} Qxa5 {[%emt 0:00:04]} 36. Nh5 {[%emt 0:01:35]} Bd4 {[%emt 0:01:01]} 37. Qc4 {[%emt 0:01:38]} c5 {[%emt 0:01:02]} 38. Qd5 {[%emt 0:00:21]} Qc7 {[%emt 0:00:13]} 39. Re1 {[%emt 0:00:54]} Be5 {[%emt 0:00:21]} 40. Nf4 {[%emt 0:00:36]} Qc6 {[%emt 0:00:05]} 41. Ng6+ {[%emt 0:00:43]} Kh7 {[%emt 0:00:03]} 42. Qxc6 {[%emt 0:00:07]} Nxc6 {[%emt 0:00:43]} 43. Nxe5 {[%emt 0:01:13]} fxe5 {[%emt 0:00:50]} 44. Rb1 {[%emt 0:00:43]} Nd4 {[%emt 0:00:27]} 45. Rxb7 {[%emt 0:00:37]} Nxf5 {[%emt 0:00:19]} 46. a4 {[%emt 0:00:40]} Nxg3+ {[%emt 0:00:57]} 47. Kg2 {[%emt 0:00:02]} Nf5 {[%emt 0:00:30]} 48. a5 {[%emt 0:00:37]} Nd6 {[%emt 0:00:51]} 49. a6 {[%emt 0:00:32]} 1-0

[Event "Elegant 1st Division League 2024"]
[Site "Dhaka"]
[Date "2024.07.15"]
[Round "5.5"]
[White "Sajib, Das"]
[Black "Bhosale Shriraj"]
[Result "0-1"]
[Annotator "RC"]
[ECO "B15"]
[WhiteElo "1894"]
[BlackElo "2043"]
[PlyCount "72"]
[EventDate "2024.07.10"]
[EventType "team-tourn"]
[EventCountry "BAN"]
[SourceTitle "playchess.com"]
[Source "ChessBase"]
[SourceQuality "1"]
[TimeControl "5400+30"]

1. e4 {[%emt 0:02:59]} c6 {[%emt 0:00:03]} 2. Nc3 {[%emt 0:00:19]} d5 {[%emt 0:00:59]} 3. Nf3 {[%emt 0:00:12]} dxe4 {[%emt 0:00:21]} 4. Nxe4 {[%emt 0:00:16]} Nf6 {[%emt 0:00:05]} 5. Nxf6+ {[%emt 0:01:43]} exf6 {[%emt 0:00:04]} 6. d4 {[%emt 0:01:08]} Bd6 {[%emt 0:00:15]} 7. Be2 {[%emt 0:01:32]} O-O {[%emt 0:00:14]} 8. O-O {[%emt 0:00:09]} Re8 {[%emt 0:00:35]} 9. h3 {[%emt 0:01:36]} Nd7 {[%emt 0:00:35]} 10. Re1 {[%emt 0:01:04]} Nf8 {[%emt 0:00:09]} 11. Bd3 {[%emt 0:00:24]} Be6 {[%emt 0:00:07]} 12. c4 {[%emt 0:01:47]} Ng6 {[%emt 0:01:56]} 13. Bxg6 {[%emt 0:01:15]} hxg6 {[%emt 0:01:54]} 14. b3 {[%emt 0:01:56]} Qd7 {[%emt 0:00:14]} 15. Bb2 {[%emt 0:16:51]} Bxh3 {[%emt 0:13:21]} 16. Ne5 {[%emt 0:05:03]} fxe5 {[%emt 0:00:21]} 17. gxh3 {[%emt 0:05:11]} Qxh3 {[%emt 0:03:34]} 18. Re3 {[%emt 0:08:01]} Qf5 {[%emt 0:02:29]} 19. c5 {[%emt 0:02:16]} Bf8 {[%emt 0:00:48]} 20. Qe2 {[%emt 0:00:29]} Re6 {[%emt 0:03:06]} 21. Rxe5 {[%emt 0:03:22]} Rxe5 {[%emt 0:00:10]} 22. Qxe5 {[%emt 0:00:13]} Qxe5 {[%emt 0:03:28]} 23. dxe5 {[%emt 0:00:08]} Bxc5 {[%emt 0:02:25]} 24. Rd1 {[%emt 0:00:20]} Bb6 {[%emt 0:00:28]} 25. Rd7 {[%emt 0:04:54]} Rd8 {[%emt 0:00:03]} 26. e6 {[%emt 0:00:21]} Rxd7 {[%emt 0:00:43]} 27. exd7 {[%emt 0:00:18]} Bd8 {[%emt 0:00:08]} 28. Bd4 {[%emt 0:06:02]} b6 {[%emt 0:00:10]} 29. Be5 {[%emt 0:01:12]} f6 {[%emt 0:00:19]} 30. Bd6 {[%emt 0:00:28]} Kf7 {[%emt 0:00:19]} 31. Kg2 {[%emt 0:00:15]} g5 {[%emt 0:00:17]} 32. Kf3 {[%emt 0:00:26]} Ke6 {[%emt 0:00:12]} 33. Bb8 {[%emt 0:00:32]} Kxd7 {[%emt 0:00:35]} 34. a4 {[%emt 0:00:39]} Bc7 {[%emt 0:00:27]} 35. Bxa7 {[%emt 0:00:08]} Kc8 {[%emt 0:00:04]} 36. a5 {[%emt 0:00:27]} Kb7 {[%emt 0:00:04]} 0-1

[Event "Elegant 1st Division League 2024"]
[Site "Dhaka"]
[Date "2024.07.15"]
[Round "5.7"]
[White "Kazi, Saiyf"]
[Black "abzid, Rahman"]
[Result "0-1"]
[Annotator "RC"]
[ECO "B29"]
[WhiteElo "1881"]
[BlackElo "2037"]
[PlyCount "82"]
[EventDate "2024.07.10"]
[EventType "team-tourn"]
[EventCountry "BAN"]
[SourceTitle "playchess.com"]
[Source "ChessBase"]
[SourceQuality "1"]
[TimeControl "5400+30"]

1. e4 {[%emt 0:01:07]} c5 {[%emt 0:00:14]} 2. Nf3 {[%emt 0:00:04]} Nf6 {[%emt 0:00:09]} 3. Nc3 {[%emt 0:00:28]} d5 {[%emt 0:00:08]} 4. e5 {[%emt 0:01:08]} Nfd7 {[%emt 0:00:11]} 5. Nxd5 {[%emt 0:06:06]} Nxe5 {[%emt 0:00:50]} 6. Bb5+ {[%emt 0:02:05]} Nbc6 {[%emt 0:01:51]} 7. Ne3 {[%emt 0:03:29]} a6 {[%emt 0:03:30]} 8. Nxe5 {[%emt 0:02:25]} axb5 {[%emt 0:00:15]} 9. Nxc6 {[%emt 0:00:12]} bxc6 {[%emt 0:00:08]} 10. Qf3 {[%emt 0:01:50]} Qd6 {[%emt 0:02:11]} 11. b3 {[%emt 0:04:18]} Qf6 {[%emt 0:08:56]} 12. Qxf6 {[%emt 0:02:00]} exf6 {[%emt 0:00:58]} 13. Bb2 {[%emt 0:04:46]} Bd6 {[%emt 0:01:17]} 14. O-O {[%emt 0:03:12]} O-O {[%emt 0:00:07]} 15. Rfd1 {[%emt 0:11:40]} Be6 {[%emt 0:03:40]} 16. d3 {[%emt 0:02:10]} h6 {[%emt 0:01:40]} 17. a4 {[%emt 0:19:39]} Be5 {[%emt 0:20:55]} 18. d4 {[%emt 0:06:12]} cxd4 {[%emt 0:01:54]} 19. Bxd4 {[%emt 0:00:16]} Bxd4 {[%emt 0:02:34]} 20. Rxd4 {[%emt 0:00:09]} c5 {[%emt 0:00:13]} 21. Rdd1 {[%emt 0:01:00]} bxa4 {[%emt 0:00:42]} 22. bxa4 {[%emt 0:06:30]} Ra5 {[%emt 0:00:25]} 23. f4 {[%emt 0:03:35]} f5 {[%emt 0:01:12]} 24. Ra3 {[%emt 0:01:07]} Rfa8 {[%emt 0:48:30]} 25. Rda1 {[%emt 0:01:28]} Rb8 {[%emt 0:00:00]} 26. g3 {[%emt 0:04:50]} Rb4 {[%emt 0:00:00]} 27. Kf2 {[%emt 0:01:32]} g6 {[%emt 0:00:00]} 28. Nd1 {[%emt 0:01:22]} Bd7 {[%emt 0:00:00]} 29. Nc3 {[%emt 0:00:44]} Bc6 {[%emt 0:00:00]} 30. Rd1 {[%emt 0:05:07]} Kg7 {[%emt 0:00:00]} 31. Rda1 {[%emt 0:04:03]} g5 {[%emt 0:00:00]} 32. fxg5 {[%emt 0:00:35]} hxg5 {[%emt 0:00:00]} 33. Rd1 {[%emt 0:00:29]} f6 {[%emt 0:00:00]} 34. Rd6 {[%emt 0:00:59]} Be4 {[%emt 0:00:00]} 35. Nxe4 {[%emt 0:00:42]} Rxe4 {[%emt 0:05:30]} 36. Rc3 {[%emt 0:00:38]} c4 {[%emt 0:00:00]} 37. Ra3 {[%emt 0:00:08]} Kg6 {[%emt 0:00:00]} 38. Rb6 {[%emt 0:00:18]} Rae5 {[%emt 0:00:00]} 39. a5 {[%emt 0:00:58]} Re2+ {[%emt 0:00:00]} 40. Kf1 {[%emt 0:00:28]} Re1+ {[%emt 0:00:00]} 41. Kf2 {[%emt 0:00:38]} R5e2+ {[%emt 0:00:00]} 0-1

[Event "Elegant 1st Division League 2024"]
[Site "Dhaka"]
[Date "2024.07.15"]
[Round "5.8"]
[White "Tajane Ganesh"]
[Black "Mohammed, Shaker Ullah"]
[Result "0-1"]
[Annotator "RC"]
[ECO "C54"]
[WhiteElo "1772"]
[BlackElo "2018"]
[PlyCount "52"]
[EventDate "2024.07.10"]
[EventType "team-tourn"]
[EventCountry "BAN"]
[SourceTitle "playchess.com"]
[Source "ChessBase"]
[SourceQuality "1"]
[TimeControl "5400+30"]

1. e4 {[%emt 0:00:02]} e5 {[%emt 0:02:39]} 2. Nf3 {[%emt 0:00:10]} Nc6 {[%emt 0:00:28]} 3. Bc4 {[%emt 0:00:16]} Bc5 {[%emt 0:00:51]} 4. c3 {[%emt 0:00:03]} Nf6 {[%emt 0:00:10]} 5. d3 {[%emt 0:00:29]} a6 {[%emt 0:00:11]} 6. Nbd2 {[%emt 0:00:26]} d6 {[%emt 0:00:32]} 7. Bb3 {[%emt 0:00:14]} Ba7 {[%emt 0:01:25]} 8. Nf1 {[%emt 0:00:25]} h6 {[%emt 0:03:57]} 9. h3 {[%emt 0:02:31]} Qe7 {[%emt 0:03:27]} 10. Ng3 {[%emt 0:06:07]} Be6 {[%emt 0:01:55]} 11. Nh4 {[%emt 0:08:10]} g6 {[%emt 0:06:05]} 12. Bxe6 {[%emt 0:04:32]} Qxe6 {[%emt 0:01:21]} 13. Be3 {[%emt 0:03:02]} d5 {[%emt 0:12:13]} 14. Bxa7 {[%emt 0:04:41]} Nxa7 {[%emt 0:00:53]} 15. Qb3 {[%emt 0:03:23]} O-O-O {[%emt 0:00:27]} 16. O-O-O {[%emt 0:01:26]} Rd6 {[%emt 0:03:00]} 17. Nf3 {[%emt 0:06:06]} Rb6 {[%emt 0:01:18]} 18. Qa4 {[%emt 0:01:25]} Rd8 {[%emt 0:05:13]} 19. Rhe1 {[%emt 0:06:12]} Nc6 {[%emt 0:04:23]} 20. d4 {[%emt 0:16:33]} dxe4 {[%emt 0:12:47]} 21. Nxe4 {[%emt 0:00:10]} exd4 {[%emt 0:02:37]} 22. Ng3 {[%emt 0:32:05]} Qd6 {[%emt 0:01:32]} 23. Nd2 {[%emt 0:02:53]} dxc3 {[%emt 0:01:45]} 24. Nc4 {[%emt 0:00:03]} Qf4+ {[%emt 0:00:36]} 25. Kb1 {[%emt 0:00:17]} Rxd1+ {[%emt 0:00:30]} 26. Rxd1 {[%emt 0:00:27]} Rb4 {[%emt 0:00:45]} 0-1

[Event "Elegant 1st Division League 2024"]
[Site "Dhaka"]
[Date "2024.07.15"]
[Round "5.10"]
[White "Uddipan Roy"]
[Black "Mahindrakar Indrajeet"]
[Result "1/2-1/2"]
[Annotator "RC"]
[ECO "B42"]
[WhiteElo "1967"]
[BlackElo "2129"]
[PlyCount "165"]
[EventDate "2024.07.10"]
[EventType "team-tourn"]
[EventCountry "BAN"]
[SourceTitle "playchess.com"]
[Source "ChessBase"]
[SourceQuality "1"]
[TimeControl "5400+30"]

1. e4 {[%emt 0:00:03]} c5 {[%emt 0:00:22]} 2. Nf3 {[%emt 0:00:06]} e6 {[%emt 0:00:22]} 3. d4 {[%emt 0:00:33]} cxd4 {[%emt 0:00:09]} 4. Nxd4 {[%emt 0:00:05]} a6 {[%emt 0:00:10]} 5. Bd3 {[%emt 0:00:05]} Nf6 {[%emt 0:00:26]} 6. O-O {[%emt 0:00:52]} Qc7 {[%emt 0:00:34]} 7. c4 {[%emt 0:00:53]} d6 {[%emt 0:01:20]} 8. Nc3 {[%emt 0:00:11]} g6 {[%emt 0:00:31]} 9. b3 {[%emt 0:14:53]} Bg7 {[%emt 0:06:03]} 10. Bb2 {[%emt 0:01:49]} O-O {[%emt 0:00:53]} 11. Re1 {[%emt 0:03:25]} Nc6 {[%emt 0:05:22]} 12. Bf1 {[%emt 0:08:06]} Nd7 {[%emt 0:03:09]} 13. Nxc6 {[%emt 0:06:06]} bxc6 {[%emt 0:06:04]} 14. Qd2 {[%emt 0:08:27]} Re8 {[%emt 0:05:59]} 15. Rad1 {[%emt 0:06:02]} Bf8 {[%emt 0:00:09]} 16. Qd4 {[%emt 0:22:57]} e5 {[%emt 0:05:02]} 17. Qd2 {[%emt 0:01:02]} Nc5 {[%emt 1:02:25]} 18. Ba3 {[%emt 0:06:41]} Bg4 {[%emt 0:00:00]} 19. f3 {[%emt 0:12:41]} Bc8 20. Bxc5 {[%emt 0:00:32]} dxc5 {[%emt 0:00:00]} 21. Qc2 {[%emt 0:03:00]} Be6 {[%emt 0:00:00]} 22. Rd3 {[%emt 0:00:30]} Rad8 {[%emt 0:00:00]} 23. Rxd8 {[%emt 0:00:37]} Rxd8 {[%emt 0:00:00]} 24. Rd1 {[%emt 0:02:54]} h5 {[%emt 0:00:00]} 25. Rd3 {[%emt 0:00:00]} Bh6 {[%emt 0:00:00]} 26. Kf2 {[%emt 0:00:26]} Rd4 {[%emt 0:00:00]} 27. Ne2 {[%emt 0:01:04]} Rd8 {[%emt 0:00:00]} 28. Qd1 {[%emt 0:00:00]} Rf8 {[%emt 0:00:00]} 29. Kg1 {[%emt 0:00:05]} Kh7 {[%emt 0:00:00]} 30. Nc3 {[%emt 0:00:34]} Bg5 {[%emt 0:00:00]} 31. Qe2 {[%emt 0:00:31]} Qa5 {[%emt 0:00:00]} 32. Qc2 {[%emt 0:01:20]} Rd8 {[%emt 0:00:00]} 33. Kf2 {[%emt 0:00:00]} Rd4 {[%emt 0:00:00]} 34. Ne2 {[%emt 0:00:00]} Rxd3 {[%emt 0:00:00]} 35. Qxd3 {[%emt 0:00:06]} Qxa2 {[%emt 0:00:00]} 36. g3 {[%emt 0:01:04]} a5 {[%emt 0:00:00]} 37. h4 {[%emt 0:00:42]} Bh6 {[%emt 0:00:00]} 38. Qc3 {[%emt 0:00:30]} a4 {[%emt 0:00:00]} 39. bxa4 {[%emt 0:00:06]} Bxc4 {[%emt 0:00:00]} 40. Qxe5 {[%emt 0:00:49]} Qa3 {[%emt 0:00:10]} 41. Qc3 {[%emt 0:00:38]} Qxa4 {[%emt 0:00:50]} 42. f4 {[%emt 0:00:13]} Bxe2 {[%emt 0:04:39]} 43. Bxe2 {[%emt 0:00:06]} Qxe4 {[%emt 0:00:05]} 44. Bf3 {[%emt 0:00:27]} Qe7 {[%emt 0:00:23]} 45. Bxc6 {[%emt 0:01:13]} Bg7 {[%emt 0:01:02]} 46. Qc4 {[%emt 0:00:10]} Bd4+ {[%emt 0:00:17]} 47. Kg2 {[%emt 0:00:02]} Kg7 {[%emt 0:00:15]} 48. Bf3 {[%emt 0:01:01]} Qe1 {[%emt 0:04:59]} 49. Qe2 {[%emt 0:00:18]} Qg1+ {[%emt 0:00:12]} 50. Kh3 {[%emt 0:00:01]} Qc1 {[%emt 0:02:15]} 51. Bd5 {[%emt 0:00:16]} Qb1 {[%emt 0:00:50]} 52. Be4 {[%emt 0:00:12]} Qb3 {[%emt 0:00:12]} 53. Kg2 {[%emt 0:01:52]} Qe6 {[%emt 0:00:27]} 54. Bd3 {[%emt 0:00:07]} Qd5+ {[%emt 0:01:08]} 55. Qf3 {[%emt 0:00:02]} Qb3 {[%emt 0:00:22]} 56. Qe2 {[%emt 0:00:13]} Qb7+ {[%emt 0:00:30]} 57. Qf3 {[%emt 0:00:09]} Qb2+ {[%emt 0:00:27]} 58. Qe2 {[%emt 0:00:02]} Qc1 {[%emt 0:00:05]} 59. Qf1 {[%emt 0:00:18]} Qe3 {[%emt 0:00:11]} 60. Qe2 {[%emt 0:00:02]} Qg1+ {[%emt 0:00:14]} 61. Kh3 {[%emt 0:01:43]} Qh1+ {[%emt 0:01:00]} 62. Qh2 {[%emt 0:00:03]} Qd5 {[%emt 0:00:53]} 63. Qe2 {[%emt 0:00:18]} Bg1 {[%emt 0:00:48]} 64. Be4 {[%emt 0:00:34]} Qd4 {[%emt 0:00:13]} 65. Bd3 {[%emt 0:00:11]} Be3 {[%emt 0:00:21]} 66. Kg2 {[%emt 0:01:46]} Qd5+ {[%emt 0:00:05]} 67. Kh2 {[%emt 0:00:04]} Qd4 {[%emt 0:00:44]} 68. Kg2 {[%emt 0:00:10]} Bxf4 {[%emt 0:01:14]} 69. gxf4 {[%emt 0:00:07]} Qxf4 {[%emt 0:00:05]} 70. Qe4 {[%emt 0:02:11]} Qxe4+ {[%emt 0:00:52]} 71. Bxe4 {[%emt 0:00:01]} c4 {[%emt 0:00:35]} 72. Kf3 {[%emt 0:00:07]} f6 {[%emt 0:00:24]} 73. Ke3 {[%emt 0:00:38]} g5 {[%emt 0:00:32]} 74. Kd4 {[%emt 0:00:40]} gxh4 {[%emt 0:00:19]} 75. Kxc4 {[%emt 0:00:01]} Kh6 {[%emt 0:00:10]} 76. Kd3 {[%emt 0:00:05]} Kg5 {[%emt 0:01:42]} 77. Ke2 {[%emt 0:00:04]} Kf4 {[%emt 0:00:00]} 78. Bf3 {[%emt 0:00:30]} Kg3 {[%emt 0:00:00]} 79. Bxh5 {[%emt 0:00:28]} h3 {[%emt 0:00:00]} 80. Bf3 {[%emt 0:00:10]} f5 {[%emt 0:00:00]} 81. Ba8 {[%emt 0:00:08]} f4 {[%emt 0:00:00]} 82. Bb7 {[%emt 0:00:09]} h2 {[%emt 0:00:26]} 83. Bh1 {[%emt 0:00:15]} 1/2-1/2

[Event "Elegant 1st Division League 2024"]
[Site "Dhaka"]
[Date "2024.07.15"]
[Round "5.11"]
[White "Majumder Shrayan"]
[Black "Abdul, Momin"]
[Result "1-0"]
[Annotator "RC"]
[ECO "E46"]
[WhiteElo "2083"]
[BlackElo "1911"]
[PlyCount "65"]
[EventDate "2024.07.10"]
[EventType "team-tourn"]
[EventCountry "BAN"]
[SourceTitle "playchess.com"]
[Source "ChessBase"]
[SourceQuality "1"]
[TimeControl "5400+30"]

1. d4 {[%emt 0:00:03]} Nf6 {[%emt 0:37:44]} 2. c4 {[%emt 0:01:01]} e6 {[%emt 0:00:02]} 3. Nc3 {[%emt 0:00:21]} Bb4 {[%emt 0:00:03]} 4. Bd2 {[%emt 0:00:26]} O-O {[%emt 0:00:27]} 5. e3 {[%emt 0:00:50]} c5 {[%emt 0:00:21]} 6. a3 {[%emt 0:02:23]} Bxc3 {[%emt 0:00:03]} 7. Bxc3 {[%emt 0:00:07]} Ne4 {[%emt 0:00:03]} 8. Rc1 {[%emt 0:01:39]} b6 {[%emt 0:00:44]} 9. Nf3 {[%emt 0:02:00]} Bb7 {[%emt 0:00:21]} 10. Bd3 {[%emt 0:02:43]} f5 {[%emt 0:05:32]} 11. O-O {[%emt 0:02:03]} Nxc3 {[%emt 0:00:30]} 12. Rxc3 {[%emt 0:00:21]} Na6 {[%emt 0:01:09]} 13. Be2 {[%emt 0:10:36]} d6 {[%emt 0:02:25]} 14. dxc5 {[%emt 0:04:57]} Nxc5 {[%emt 0:00:56]} 15. b4 {[%emt 0:01:13]} Ne4 {[%emt 0:00:07]} 16. Rd3 {[%emt 0:00:09]} Qe7 {[%emt 0:00:04]} 17. Nd2 {[%emt 0:01:21]} Rfd8 {[%emt 0:01:21]} 18. Nxe4 {[%emt 0:06:38]} Bxe4 {[%emt 0:00:04]} 19. Rd2 {[%emt 0:00:10]} a5 {[%emt 0:01:06]} 20. Bf3 {[%emt 0:02:06]} axb4 {[%emt 0:01:32]} 21. Bxe4 {[%emt 0:00:43]} fxe4 {[%emt 0:00:09]} 22. axb4 {[%emt 0:00:11]} Rac8 {[%emt 0:00:33]} 23. Rd4 {[%emt 0:02:11]} b5 {[%emt 0:00:50]} 24. cxb5 {[%emt 0:02:40]} d5 {[%emt 0:00:03]} 25. f3 {[%emt 0:01:12]} exf3 {[%emt 0:00:05]} 26. Qxf3 {[%emt 0:01:12]} Rb8 {[%emt 0:01:17]} 27. Rf4 {[%emt 0:04:06]} Rxb5 {[%emt 0:01:53]} 28. Rf7 {[%emt 0:00:14]} Qxb4 {[%emt 0:00:10]} 29. Rxg7+ {[%emt 0:01:12]} Kxg7 {[%emt 0:01:05]} 30. Qf6+ {[%emt 0:00:34]} Kg8 {[%emt 0:00:02]} 31. Qxd8+ {[%emt 0:00:11]} Kg7 {[%emt 0:00:25]} 32. Qf6+ {[%emt 0:00:07]} Kg8 {[%emt 0:00:02]} 33. Qxe6+ {[%emt 0:00:10]} 1-0